[Event "FIDE World School-ch G-17 2025"]
[Site "Vrnjacka Banja"]
[Date "2025.03.21"]
[Round "2.1"]
[White "Kirtadze, Anastasia"]
[Black "Orazalina, Nursulu"]
[Result "0-1"]
[Annotator "TA"]
[ECO "B30"]
[WhiteElo "2180"]
[BlackElo "1895"]
[PlyCount "130"]
[EventDate "2025.03.19"]
[EventType "swiss"]
[EventCountry "SRB"]
[SourceTitle "playchess.com"]
[Source "ChessBase"]
[SourceQuality "1"]
[TimeControl "5400+30"]

{[%evp 9,130,44,39,40,50,33,51,33,26,23,29,19,8,8,4,-16,0,-52,-70,-83,-73,-152,-135,-183,-113,-140,-44,-88,-113,-108,-108,-115,-98,-116,-112,-104,-120,-104,-105,-150,-175,-138,0,-113,-109,-424,0,0,0,-250,-41,-42,-56,-103,0,0,0,0,0,0,0,0,-14,-31,662,0,25,0,0,4,178,181,227,10,29986,0,0,-416,-341,-1414,-302,-310,-202,-224,-255,-29979,-29980,-29979,-5218,-1666,0,0,0,0,9,16,49,40,48,46,46,39,262,0,0,0,0,0,0,0,0,-1002,-1047,-1004,-997,-933,-904,-29988,-29988,-29994,-29995,-29998,-29999]} 1. e4 {[%emt 0:00:07]} c5 {[%emt 0:00:04]} 2. Nf3 {[%emt 0:00:05]} Nc6 {[%emt 0:00:05]} 3. Bb5 {[%emt 0:00:29]} e5 {[%emt 0:00:05]} 4. O-O {[%emt 0:04:11]} Bd6 {[%emt 0:00:06]} 5. c3 {[%emt 0:04:19]} a6 {[%emt 0:00:09]} 6. Ba4 {[%emt 0:02:44] B30: Sicilian: 2...Nc6 3 Bb5, lines without ...g6.} b5 {[%emt 0:00:08]} 7. Bc2 {[%emt 0:01:55]} Nge7 {[%emt 0:00:20]} 8. h3 {[%emt 0:02:53] White is slightly better.} Bb7 {[%emt 0:07:46]} 9. Re1 $146 {[%emt 0:07:12]} ({Predecessor:} 9. d4 cxd4 10. cxd4 Nxd4 11. Nxd4 exd4 12. Qxd4 Qc7 13. Bb3 Bh2+ 14. Kh1 Be5 15. Qd3 {0-1 Shuvalova,P (2510)-Abdumalik,Z (2503) Astana GP (Women) 2022 (6)}) 9... O-O {[%emt 1:26:17]} 10. d4 {[%emt 0:09:03]} cxd4 $1 {[%emt 0:00:00]} 11. cxd4 {[%emt 0:00:50]} Nxd4 {[%emt 0:00:00]} 12. Nxd4 {[%emt 0:02:12]} exd4 {[%emt 0:00:00]} 13. e5 {[%emt 0:07:00] White sacrificed a pawn} (13. Qxd4 $11 Qc7 14. Qd3) 13... Bc5 {[%emt 0:00:00]} 14. Bg5 {[%emt 0:29:45][%cal Oc2h7]} Qb6 $1 {[%emt 0:00:00]} 15. Qd3 {[%emt 0:02:09]} (15. Bxe7 $142 Bxe7 16. Qd3) 15... Ng6 $17 {[%emt 0:00:00]} 16. a3 {[%emt 0:05:13]} (16. Qg3 $17) 16... a5 {[%emt 0:00:00]} (16... Rae8 $19 {[%cal Of7f6]} 17. Nd2 h6 (17... Nxe5 18. Qxh7#)) 17. h4 {[%emt 0:07:20][%cal Bh3h4,Bh4h5][%mdl 32]} Rfe8 {[%emt 0:00:00]} (17... Qc6 $17 {[%csl Gb7][%cal Rc6g2]} 18. Qg3 Rae8) 18. h5 {[%emt 0:01:21] [#]} Qc6 {[%emt 0:00:00][%csl Gb7][%cal Rc6g2]} 19. f3 {[%emt 0:00:31]} Nf8 $40 {[%emt 0:00:00][%mdl 128] White is in trouble.} (19... Nxe5 20. Qxh7+ Kf8 21. Qh8#) (19... Rxe5 $2 20. Rxe5 Qc7 21. Rf5 $18 (21. hxg6 Qxe5 22. gxh7+ Kh8 $18)) 20. Nd2 {[%emt 0:01:01]} d6 {[%emt 0:00:00]} 21. h6 {[%emt 0:03:44]} dxe5 {[%emt 0:00:00]} 22. hxg7 {[%emt 0:00:13]} Kxg7 {[%emt 0:00:00]} 23. Ne4 {[%emt 0:01:06]} Be7 {[%emt 0:01:59] Repels Nf6} 24. Rac1 {[%emt 0:03:45]} Bxg5 $1 {[%emt 0:01:09]} 25. Nxg5 {[%emt 0:00:01]} Qh6 {[%emt 0:02:31]} (25... Qd7 $17 26. Bb1 Ng6) 26. Qf5 {[%emt 0:02:15]} (26. Nxf7 $1 $11 Qf6 (26... Kxf7 27. Bb3+ Kf6 28. Rc7 $11) 27. Bb3) 26... f6 {[%emt 0:01:08]} 27. Bb1 $2 {[%emt 0:01:55][%mdl 8192]} Qxg5 $2 {[%emt 0:01:27]} (27... Rac8 $1 $19 28. f4 fxg5 29. fxe5 Ne6 30. Qf6+ Qxf6 31. exf6+ Kxf6 32. Rf1+ Kg7 33. Rxc8 Bxc8 (33... Rxc8 $2 34. Bf5 $19)) 28. Rc7+ $11 {[%emt 0:00:07]} Kg8 {[%emt 0:00:11]} 29. Qh3 {[%emt 0:00:52] [#]} (29. Qxg5+ $11 {and White is okay.} fxg5 30. Rxb7) 29... h6 $2 {[%emt 0:00:54]} 30. Rxb7 $15 {[%emt 0:00:25][%cal Oe1e4]} Rac8 {[%emt 0:00:31]} 31. Bd3 {[%emt 0:00:44]} (31. Qf5 $15 {was preferable.}) 31... Rc1 {[%emt 0:00:29]} (31... Ne6 $17 {aiming for ...Nf4.} 32. Qf5 Rc7 33. Rxc7 Qxf5 34. Bxf5 Nxc7) 32. Rxc1 $1 $11 {[%emt 0:00:19]} Qxc1+ {[%emt 0:00:07]} 33. Bf1 {[%emt 0:00:06] and Qh5 should not be overlooked} Qe3+ {[%emt 0:00:47]} (33... Qxb2 34. Qg4+ (34. Rxb5 Qd2 $17)) 34. Kh1 {[%emt 0:00:18]} Qg5 {[%emt 0:00:42] Prevents Qh5.} 35. Bxb5 {[%emt 0:00:15]} Rd8 {[%emt 0:00:26]} 36. Bd3 {[%emt 0:01:27]} Rd5 $2 {[%emt 0:00:34][%mdl 8192] Black is weak on the light squares} (36... a4 $15) 37. Rc7 $2 {[%emt 0:00:34]} (37. Bc4 $18) 37... Rd8 {[%emt 0:00:16]} (37... Rd7 $5 38. Bc4+ (38. Rxd7 Qc1+ 39. Kh2 Qf4+ 40. Kg1 Qe3+ 41. Kh2 Qf4+ 42. Kg1 Qe3+ 43. Kh2 Qf4+ $11) 38... Kh8 $16) 38. b4 {[%emt 0:00:26]} axb4 {[%emt 0:00:30]} 39. axb4 {[%emt 0:00:01]} Ng6 $2 {[%emt 0:00:32]} (39... f5 $11 {and Black stays safe.}) 40. Qe6+ $18 {[%emt 0:00:38]} Kh8 {[%emt 0:00:05][%cal Og5g2] [#]} 41. g3 {[%emt 0:00:54]} (41. Qf7 $1 $18 {[%csl Gc7][%cal Rf7g7]} Nf8 42. g3) 41... Rf8 $2 {[%emt 0:00:49][%mdl 8192]} (41... Ra8 $11 42. Bf1 Nf8) 42. b5 $2 {[%emt 0:00:28]} (42. Qd7 {mates} Qh5+ 43. Kg1 Ne7 44. Qxe7 Qf7 45. Qxf7 Rxf7 46. Rxf7 Kg8 47. Rc7 (47. Rxf6 Kh8 48. Rxh6+ Kg7 49. Rh7+ Kf6 50. b5 e4 51. fxe4 Kg6 52. e5+ Kg5)) 42... Qxg3 $11 {[%emt 0:00:17]} 43. Qf5 $2 {[%emt 0:00:33][%mdl 8192]} (43. Bxg6 $11 Qxg6 44. b6) 43... e4 {[%emt 0:01:02]} 44. Qd7 $2 {[%emt 0:00:23]} (44. Bxe4 Qxc7 45. Qxg6) 44... Qxf3+ $2 {[%emt 0:00:21]} (44... exd3 45. Qh7#) (44... Qh4+ 45. Kg1 Ne7 (45... exd3 46. Qh7#) (45... Qg3+ $2 46. Kf1 $19) 46. Bxe4 Qe1+ 47. Kh2 Rg8) 45. Kg1 $19 {[%emt 0:00:32]} Ne7 {[%emt 0:00:34]} (45... Qxd3 46. Qh7#) 46. Bc4 {[%emt 0:00:01] Repels Rg8+} Qg3+ {[%emt 0:00:29]} 47. Kf1 $2 {[%emt 0:00:32] [#]} (47. Kh1 $19 Ra8 48. Ra7 Qh4+ 49. Kg2 Qg5+ 50. Kh1 Rxa7 51. Qxa7 Qc1+ 52. Kg2 Qc2+ (52... Qxc4 $2 53. Qxe7 Qe2+ 54. Kg1 $19) 53. Kg1 Qd1+ (53... Qxc4 $2 54. Qxe7 Qc1+ 55. Kg2 $19) 54. Kg2 Qg4+ 55. Kf1 Qd1+ 56. Kg2) 47... e3 $1 {[%emt 0:00:27][%csl Ge3][%cal Rg3f2]} 48. Ke2 {[%emt 0:00:09]} Qf2+ {[%emt 0:00:08]} (48... Qg2+ $142 49. Kd3 Qd2+ 50. Ke4 e2 51. Qxe7 e1=Q+ (51... e1=R+ $2 52. Kd5 $19) 52. Kd5 Qg5+ 53. Kc6 Qxe7 54. Rxe7 Qc1 55. Kd7 Qxc4 56. Kd6 d3 (56... Qxb5 57. Ra7 d3 58. Ke6 d2 59. Ra1 Qe5+ 60. Kd7 Qd5+ 61. Kc7 Rf7+ 62. Kc8 Qd7+ 63. Kb8 Rf8#) 57. Re1 Qd4+ (57... Qxb5 58. Rh1 Qe5+ 59. Kc6 Rc8+ 60. Kb6 Qc7+ 61. Ka6 Ra8+ 62. Kb5 Rb8+ 63. Ka6 Qb6#) 58. Ke7 Qc5+ 59. Ke6 Re8+ (59... Qxb5 60. Kd6 Rd8+ 61. Ke7 Re8+ 62. Kd6 Rxe1 63. Kc7 d2 64. Kd8 d1=Q+ 65. Kc8 Qdd7#) 60. Kf7 Qf8+ (60... Rxe1 $2 61. Kxf6 Qg5+ 62. Kf7 Qg7#) 61. Kg6 Qg7+ 62. Kh5 Qg5#) 49. Kd3 {[%emt 0:00:04]} Qf5+ $2 {[%emt 0:00:55]} (49... Qd2+ $19 50. Ke4 e2 51. Qxe7 e1=Q+ (51... e1=R+ $2 52. Kd5 $19) 52. Kd5 Qg5+ 53. Kc6 Qxe7 54. Rxe7 Qc1) 50. Kxd4 $11 {[%emt 0:00:38]} Qe5+ {[%emt 0:00:19]} 51. Kd3 {[%emt 0:00:03]} Qf5+ {[%emt 0:00:45]} 52. Kxe3 {[%emt 0:00:33]} Qg5+ {[%emt 0:00:33]} 53. Kd3 {[%emt 0:00:39][%mdl 1024] White has compensation.} Qg3+ {[%emt 0:00:12]} 54. Kc2 {[%emt 0:00:12]} Qf2+ {[%emt 0:00:40]} 55. Kb3 {[%emt 0:01:14]} (55. Qd2 {simplifies} Qxd2+ 56. Kxd2 Nc8 57. Kc3) 55... Qe3+ {[%emt 0:00:30] [#]} ({Black should play} 55... Qg3+ $14 56. Kc2 Qh2+ 57. Qd2 Qxd2+ 58. Kxd2 Nc8) 56. Kb4 $2 {[%emt 0:01:03]} (56. Bd3 $1 $18) 56... Ra8 {[%emt 0:00:09]} 57. Bd3 {[%emt 0:00:53]} (57. Qxe7 $2 Qa3#) 57... Qe1+ {[%emt 0:00:48]} 58. Kc5 {[%emt 0:00:27]} Qc3+ {[%emt 0:00:36]} 59. Bc4 {[%emt 0:00:32]} Qe5+ {[%emt 0:00:27]} 60. Kb6 $2 {[%emt 0:00:33][%mdl 8192]} (60. Bd5 $11 Qc3+ 61. Bc4 Qa3+ 62. Kd4 Qb2+ 63. Kc5 Qe5+ 64. Kb4) 60... Qe3+ $19 {[%emt 0:00:23]} 61. Rc5 {[%emt 0:00:15]} Rb8+ {[%emt 0:00:42]} 62. Ka7 {[%emt 0:00:44]} Rc8 {[%emt 0:00:12]} ({Less strong is} 62... Qxc5+ 63. Kxb8 Qxc4 64. Qe8+ Ng8 65. b6 $15) 63. b6 {[%emt 0:00:27]} Qxc5 {[%emt 0:00:16] Black mates.} ({Not} 63... Rxc5 64. Qe8+ Kg7 65. Qf7+ Kh8 66. Qxf6+ Kh7 67. Qf7+ Kh8 68. Qf8+ Kh7 69. Bd3+ $16) 64. Qe6 {[%emt 0:00:23]} Nc6+ {[%emt 0:00:37]} 65. Ka6 {[%emt 0:00:11]} Qa5+ {[%emt 0:00:12] Both players deserved the win here.   Weighted Error Value: White=0.86/Black=0.74  Loses game:     	White=3     	Black=4      Missed win:     	White=4     	Black=2      Mistake:       	White=7     	Black=5      Inaccurate:     	White=2     	Black=1      OK:         	White=14    	Black=10     Best:        	White=6     	Black=5      Strong:       	White=1     	Black=3} 0-1

[Event "FIDE World School-ch G-17 2025"]
[Site "Vrnjacka Banja"]
[Date "2025.03.21"]
[Round "2.2"]
[White "Jankovic, Tamara"]
[Black "Altynbek, Aiaru"]
[Result "0-1"]
[Annotator "NA RC"]
[ECO "B11"]
[WhiteElo "1900"]
[BlackElo "2005"]
[PlyCount "100"]
[EventDate "2025.03.19"]
[EventType "swiss"]
[EventCountry "SRB"]
[SourceTitle "playchess.com"]
[Source "ChessBase"]
[SourceQuality "1"]
[TimeControl "5400+30"]

1. e4 {[%emt 0:00:01]} c6 {[%emt 0:00:17]} 2. Nf3 {[%emt 0:00:15]} d5 {[%emt 0:00:18]} 3. Nc3 {[%emt 0:00:06]} Bg4 {[%emt 0:00:19]} 4. h3 {[%emt 0:00:29]} Bxf3 {[%emt 0:00:12]} 5. Qxf3 {[%emt 0:00:07]} e6 {[%emt 0:00:11]} 6. Be2 {[%emt 0:00:57]} Bc5 {[%emt 0:01:20]} 7. Qg3 {[%emt 0:02:45]} Bd4 {[%emt 0:02:11]} 8. O-O {[%emt 0:08:42]} Nd7 {[%emt 0:08:14]} 9. exd5 {[%emt 0:01:46]} exd5 {[%emt 0:06:25]} 10. Bg4 {[%emt 0:05:45]} Ne7 {[%emt 0:04:59]} 11. Re1 {[%emt 0:00:30]} O-O {[%emt 0:02:57]} 12. Ne2 {[%emt 0:09:33]} Be5 {[%emt 0:02:43]} 13. f4 {[%emt 0:01:39]} Bf6 {[%emt 0:07:21]} 14. d3 {[%emt 0:03:57]} Re8 {[%emt 0:12:11]} 15. Be3 {[%emt 0:03:01]} Nf8 {[%emt 0:10:52]} 16. Nd4 {[%emt 0:04:52]} c5 {[%emt 0:02:28]} 17. Nf3 {[%emt 0:04:55]} Bxb2 {[%emt 0:07:58]} 18. Rab1 {[%emt 0:02:07]} Bc3 {[%emt 0:00:07]} 19. Bd2 {[%emt 0:05:20]} Bxd2 {[%emt 0:01:52]} 20. Nxd2 {[%emt 0:00:02]} Qc7 {[%emt 0:00:38]} 21. Qf2 {[%emt 0:06:00]} Rab8 {[%emt 0:04:22]} 22. Re2 {[%emt 0:02:08]} Neg6 {[%emt 0:02:33]} 23. g3 {[%emt 0:01:43]} Rxe2 {[%emt 0:00:46]} 24. Qxe2 {[%emt 0:00:59]} Nd7 {[%emt 0:01:23]} 25. Bf3 {[%emt 0:03:31]} Nf6 {[%emt 0:00:58]} 26. Qg2 {[%emt 0:01:50]} Qe7 {[%emt 0:04:45]} 27. Qe2 {[%emt 0:07:15]} Qd6 {[%emt 0:03:03]} 28. Qf2 {[%emt 0:04:19]} h5 {[%emt 0:00:54]} 29. Nb3 {[%emt 0:00:41]} b6 {[%emt 0:00:33]} 30. Kg2 {[%emt 0:01:41]} h4 {[%emt 0:00:46]} 31. f5 {[%emt 0:01:13]} Ne5 {[%emt 0:03:11]} 32. g4 {[%emt 0:00:21]} Nxf3 {[%emt 0:00:57]} 33. Qxf3 {[%emt 0:02:12]} Re8 {[%emt 0:00:41]} 34. Qf2 {[%emt 0:00:15]} d4 {[%emt 0:02:47]} 35. Re1 {[%emt 0:02:33]} Rxe1 {[%emt 0:02:28]} 36. Qxe1 {[%emt 0:00:02]} Nd5 {[%emt 0:00:55]} 37. Qe8+ {[%emt 0:01:20]} Kh7 {[%emt 0:00:18]} 38. Qe1 {[%emt 0:02:28]} Ne3+ {[%emt 0:00:35]} 39. Kg1 {[%emt 0:00:26]} Qg3+ {[%emt 0:01:05]} 40. Qxg3 {[%emt 0:00:05]} hxg3 {[%emt 0:00:02]} 41. a4 {[%emt 0:02:36]} Nxc2 {[%emt 0:02:16]} 42. Kg2 {[%emt 0:02:19]} Ne1+ {[%emt 0:00:09]} 43. Kxg3 {[%emt 0:00:03]} Nxd3 {[%emt 0:00:04]} 44. Kf3 {[%emt 0:00:12]} Kg8 {[%emt 0:01:03]} 45. h4 {[%emt 0:00:47]} a5 {[%emt 0:00:26]} 46. Ke4 {[%emt 0:01:01]} Nb2 {[%emt 0:00:18]} 47. Kd5 {[%emt 0:00:08]} Nxa4 {[%emt 0:00:34]} 48. Kc6 {[%emt 0:00:04]} d3 {[%emt 0:00:41]} 49. Kb5 {[%emt 0:00:16]} Nb2 {[%emt 0:00:10]} 50. Kxb6 {[%emt 0:02:59]} c4 {[%emt 0:00:08]} 0-1

[Event "FIDE World School-ch G-17 2025"]
[Site "Vrnjacka Banja"]
[Date "2025.03.21"]
[Round "2.3"]
[White "Maslova, Anastasiya Yar"]
[Black "Vojinovic, Anastasija"]
[Result "1-0"]
[Annotator "NA RC"]
[ECO "B95"]
[WhiteElo "1938"]
[BlackElo "1857"]
[PlyCount "65"]
[EventDate "2025.03.19"]
[EventType "swiss"]
[EventCountry "SRB"]
[SourceTitle "playchess.com"]
[Source "ChessBase"]
[SourceQuality "1"]
[TimeControl "5400+30"]

1. e4 {[%emt 0:00:01]} c5 {[%emt 0:00:16]} 2. Nf3 {[%emt 0:00:12]} d6 {[%emt 0:00:23]} 3. d4 {[%emt 0:00:06]} cxd4 {[%emt 0:00:17]} 4. Nxd4 {[%emt 0:00:07]} Nf6 {[%emt 0:00:05]} 5. Nc3 {[%emt 0:00:09]} a6 {[%emt 0:00:06]} 6. Bg5 {[%emt 0:00:08]} e6 {[%emt 0:00:25]} 7. Qe2 {[%emt 0:00:09]} Be7 {[%emt 0:02:14]} 8. h4 {[%emt 0:00:08]} Nc6 {[%emt 0:10:10]} 9. Nb3 {[%emt 0:07:55]} b5 {[%emt 0:08:38]} 10. a3 {[%emt 0:01:41]} Rb8 {[%emt 0:19:00]} 11. O-O-O {[%emt 0:07:54]} b4 {[%emt 0:06:59]} 12. axb4 {[%emt 0:00:47]} Rxb4 {[%emt 0:03:38]} 13. Bd2 {[%emt 0:12:24]} Rb8 {[%emt 0:12:04]} 14. g4 {[%emt 0:02:23]} Na5 {[%emt 0:04:41]} 15. Nxa5 {[%emt 0:14:43]} Qxa5 {[%emt 0:00:09]} 16. Nb1 {[%emt 0:03:07]} Qa1 {[%emt 0:05:57]} 17. Bc3 {[%emt 0:02:47]} O-O {[%emt 0:12:32]} 18. Bg2 {[%emt 0:10:53]} Nd7 {[%emt 0:04:39]} 19. Rh3 {[%emt 0:13:44]} Nc5 {[%emt 0:02:35]} 20. Bd4 {[%emt 0:03:06]} Qa5 {[%emt 0:02:20]} 21. e5 {[%emt 0:06:44]} d5 {[%emt 0:01:53]} 22. g5 {[%emt 0:03:56]} Na4 {[%emt 0:01:10]} 23. Bf1 {[%emt 0:02:28]} Bc5 {[%emt 0:00:31]} 24. Qd2 {[%emt 0:02:16]} Rb4 {[%emt 0:01:07]} 25. Rb3 {[%emt 0:01:33]} Qc7 {[%emt 0:00:34]} 26. Rxb4 {[%emt 0:00:46]} Bxb4 {[%emt 0:00:06]} 27. Qxb4 {[%emt 0:00:16]} Bd7 {[%emt 0:00:02]} 28. Qd6 {[%emt 0:00:59]} Qb7 {[%emt 0:01:12]} 29. Bxa6 {[%emt 0:01:09]} Qa8 {[%emt 0:00:17]} 30. b3 {[%emt 0:00:59]} Bc6 {[%emt 0:00:13]} 31. Bd3 {[%emt 0:00:34]} Rd8 {[%emt 0:00:43]} 32. Qa3 {[%emt 0:00:20]} Nb6 {[%emt 0:00:07]} 33. Bxb6 {[%emt 0:00:24]} 1-0

[Event "FIDE World School-ch G-17 2025"]
[Site "Vrnjacka Banja"]
[Date "2025.03.21"]
[Round "2.4"]
[White "Wang, Chloe Heather"]
[Black "Seyhan, Pelin"]
[Result "1/2-1/2"]
[Annotator "NA RC"]
[ECO "B70"]
[WhiteElo "1892"]
[BlackElo "1924"]
[PlyCount "76"]
[EventDate "2025.03.19"]
[EventType "swiss"]
[EventCountry "SRB"]
[SourceTitle "playchess.com"]
[Source "ChessBase"]
[SourceQuality "1"]
[TimeControl "5400+30"]

1. e4 {[%emt 0:00:07]} c5 {[%emt 0:00:07]} 2. Nf3 {[%emt 0:00:08]} d6 {[%emt 0:00:05]} 3. d4 {[%emt 0:01:11]} cxd4 {[%emt 0:00:06]} 4. Nxd4 {[%emt 0:00:02]} Nf6 {[%emt 0:00:08]} 5. Nc3 {[%emt 0:00:05]} g6 {[%emt 0:00:09]} 6. f3 {[%emt 0:00:33]} Nc6 {[%emt 0:00:41]} 7. Be3 {[%emt 0:02:36]} h5 {[%emt 0:00:25]} 8. Qd2 {[%emt 0:03:00]} Nxd4 {[%emt 0:00:11]} 9. Bxd4 {[%emt 0:02:40]} Bh6 {[%emt 0:00:06]} 10. Qf2 {[%emt 0:01:59]} O-O {[%emt 0:09:04]} 11. Bxf6 {[%emt 0:15:35]} exf6 {[%emt 0:00:05]} 12. Rd1 {[%emt 0:04:13]} Be6 {[%emt 0:11:24]} 13. Be2 {[%emt 0:09:18]} Qa5 {[%emt 0:04:45]} 14. a3 {[%emt 0:15:04]} Rfd8 {[%emt 0:10:23]} 15. O-O {[%emt 0:06:57]} d5 {[%emt 0:03:13]} 16. exd5 {[%emt 0:00:45]} Bxd5 {[%emt 0:01:21]} 17. Nxd5 {[%emt 0:01:13]} Rxd5 {[%emt 0:00:06]} 18. Bc4 {[%emt 0:04:09]} Rxd1 {[%emt 0:03:24]} 19. Rxd1 {[%emt 0:00:10]} Qe5 {[%emt 0:00:58]} 20. Qe2 {[%emt 0:09:43]} Be3+ {[%emt 0:07:06]} 21. Kh1 {[%emt 0:01:29]} Re8 {[%emt 0:06:51]} 22. Qd3 {[%emt 0:04:16]} f5 {[%emt 0:05:22]} 23. Qd5 {[%emt 0:03:26]} Qxd5 {[%emt 0:06:17]} 24. Bxd5 {[%emt 0:00:13]} b6 {[%emt 0:05:48]} 25. g3 {[%emt 0:02:30]} Kg7 {[%emt 0:02:56]} 26. Re1 {[%emt 0:07:06]} g5 {[%emt 0:03:47]} 27. Kg2 {[%emt 0:03:06]} Re5 {[%emt 0:03:25]} 28. c4 {[%emt 0:01:13]} Kf6 {[%emt 0:04:37]} 29. b4 {[%emt 0:00:40]} b5 {[%emt 0:01:41]} 30. f4 {[%emt 0:01:05]} gxf4 {[%emt 0:03:19]} 31. gxf4 {[%emt 0:00:16]} Bxf4 {[%emt 0:00:07]} 32. Rxe5 {[%emt 0:00:09]} Kxe5 {[%emt 0:00:47]} 33. Bxf7 {[%emt 0:00:26]} bxc4 {[%emt 0:00:25]} 34. Bxc4 {[%emt 0:00:08]} Bc1 {[%emt 0:02:05]} 35. a4 {[%emt 0:00:16]} Kd4 {[%emt 0:00:21]} 36. Be6 {[%emt 0:01:36]} f4 {[%emt 0:00:40]} 37. Bf7 {[%emt 0:01:03]} h4 {[%emt 0:00:25]} 38. Bh5 {[%emt 0:00:24]} Ke3 {[%emt 0:02:03]} 1/2-1/2

[Event "FIDE World School-ch G-17 2025"]
[Site "Vrnjacka Banja"]
[Date "2025.03.21"]
[Round "2.5"]
[White "Buyankhishig, Batpelden"]
[Black "Newansa, M Esandi"]
[Result "1-0"]
[Annotator "NA RC"]
[ECO "D12"]
[WhiteElo "1907"]
[BlackElo "1801"]
[PlyCount "107"]
[EventDate "2025.03.19"]
[EventType "swiss"]
[EventCountry "SRB"]
[SourceTitle "playchess.com"]
[Source "ChessBase"]
[SourceQuality "1"]
[TimeControl "5400+30"]

1. d4 {[%emt 0:00:01]} d5 {[%emt 0:02:20]} 2. c4 {[%emt 0:00:53]} c6 {[%emt 0:00:06]} 3. Nf3 {[%emt 0:00:10]} Nf6 {[%emt 0:00:07]} 4. e3 {[%emt 0:00:09]} Bf5 {[%emt 0:01:08]} 5. Nc3 {[%emt 0:00:56]} e6 {[%emt 0:00:06]} 6. Nh4 {[%emt 0:00:27]} Bg4 {[%emt 0:00:28]} 7. Qb3 {[%emt 0:04:56]} Qb6 {[%emt 0:00:29]} 8. h3 {[%emt 0:03:36]} Bh5 {[%emt 0:00:49]} 9. g4 {[%emt 0:02:07]} Bg6 {[%emt 0:00:06]} 10. c5 {[%emt 0:05:58]} Qc7 {[%emt 0:00:20]} 11. Nxg6 {[%emt 0:02:31]} hxg6 {[%emt 0:00:06]} 12. Bg2 {[%emt 0:00:59]} Nbd7 {[%emt 0:00:36]} 13. f4 {[%emt 0:09:34]} b6 {[%emt 0:02:33]} 14. cxb6 {[%emt 0:00:46]} Qxb6 {[%emt 0:00:29]} 15. Qxb6 {[%emt 0:03:39]} axb6 {[%emt 0:00:38]} 16. Bd2 {[%emt 0:04:38]} b5 {[%emt 0:02:27]} 17. g5 {[%emt 0:05:53]} Ng8 {[%emt 0:00:31]} 18. Ne2 {[%emt 0:05:48]} Nb6 {[%emt 0:01:34]} 19. b3 {[%emt 0:02:54]} Ba3 {[%emt 0:00:40]} 20. Nc1 {[%emt 0:07:56]} Ne7 {[%emt 0:01:34]} 21. Nd3 {[%emt 0:00:12]} Nf5 {[%emt 0:00:49]} 22. Kf2 {[%emt 0:04:18]} f6 {[%emt 0:12:06]} 23. Rhe1 {[%emt 0:05:59]} Kf7 {[%emt 0:07:34]} 24. Bb4 {[%emt 0:01:54]} Nd7 {[%emt 0:05:30]} 25. Bxa3 {[%emt 0:01:31]} Rxa3 {[%emt 0:00:09]} 26. Rec1 {[%emt 0:00:51]} Rha8 {[%emt 0:05:01]} 27. Nb4 {[%emt 0:02:29]} Nb8 {[%emt 0:02:30]} 28. Bf3 {[%emt 0:02:19]} Ne7 {[%emt 0:01:34]} 29. Bg4 {[%emt 0:02:51]} R8a7 {[%emt 0:01:41]} 30. h4 {[%emt 0:01:49]} Nf5 {[%emt 0:04:24]} 31. Bxf5 {[%emt 0:17:56]} exf5 {[%emt 0:01:51]} 32. Kf3 {[%emt 0:00:00]} Ke7 {[%emt 0:05:41]} 33. Nxc6+ {[%emt 0:00:00]} Nxc6 {[%emt 0:00:08]} 34. Rxc6 {[%emt 0:00:00]} Rxa2 {[%emt 0:05:14]} 35. Rxa2 {[%emt 0:00:00]} Rxa2 {[%emt 0:00:06]} 36. Rc7+ {[%emt 0:00:00]} Kf8 {[%emt 0:03:09]} 37. Rb7 {[%emt 0:00:00]} Rb2 {[%emt 0:02:48]} 38. Rxb5 {[%emt 0:00:00]} Kf7 {[%emt 0:00:25]} 39. Rb7+ {[%emt 0:00:00]} Kf8 {[%emt 0:00:17]} 40. b4 {[%emt 0:00:00]} Kg8 {[%emt 0:01:59]} 41. b5 {[%emt 0:00:00]} Kf8 {[%emt 0:00:10]} 42. b6 {[%emt 0:00:00]} Kg8 {[%emt 0:00:07]} 43. Kg3 {[%emt 0:04:27]} Kf8 {[%emt 0:01:48]} 44. Kf3 {[%emt 0:00:10]} Kg8 {[%emt 0:00:08]} 45. h5 {[%emt 0:00:43]} gxh5 {[%emt 0:05:57]} 46. g6 {[%emt 0:00:06]} Kf8 {[%emt 0:00:04]} 47. Rf7+ {[%emt 0:00:19]} Ke8 {[%emt 0:01:05]} 48. b7 {[%emt 0:00:08]} h4 {[%emt 0:00:25]} 49. Rxg7 {[%emt 0:00:11]} Kf8 {[%emt 0:01:26]} 50. Rc7 {[%emt 0:00:13]} h3 {[%emt 0:00:08]} 51. Rc8+ {[%emt 0:00:12]} Kg7 {[%emt 0:00:05]} 52. b8=Q {[%emt 0:00:13]} Rxb8 {[%emt 0:00:36]} 53. Rxb8 {[%emt 0:00:06]} h2 {[%emt 0:00:06]} 54. Kg2 {[%emt 0:00:03]} 1-0